fUST/lending_fUST_20260203
["ID","MTS","AMOUNT","RATE_DAILY","PERIOD"]
[404311054,1770054639199,-207.0904,0.00043836,90]
[404311056,1770054639210,-207.0904,0.00043836,90]
[404311058,1770054639220,-207.090393,0.00043836,90]
[404311060,1770054639229,-15550.99611293,0.00044,30]
[404311062,1770054639238,-200.0,0.00044,120]
[404311064,1770054639248,-500.35858256,0.00044,2]
[404311066,1770054639256,-1041.66666667,0.00044,120]
[404311068,1770054639265,-4905.0,0.00044103,7]
[404311070,1770054639274,-587.07,0.00044184,120]
[404311072,1770054639284,-793.77,0.00044247,120]
[404311074,1770054639294,-3100.0,0.000444,7]
[404311076,1770054639303,-9595.25551,0.00044457,60]
[404311078,1770054639312,-2500.0,0.000445,7]
[404311080,1770054639321,-390.61448153,0.000449,120]
[404311082,1770054639330,-587.07,0.00044981,120]
[404311084,1770054639339,-194.13413042,0.00045,2]
[404311086,1770054639351,-500.0,0.00045,120]
[404311088,1770054639361,-1108.45,0.00045,120]
[404311090,1770054639371,-2498.86178458,0.00045,120]
[404311093,1770054639381,-470.16731661,0.00045,120]
[404311094,1770054639390,-882.78295617,0.00045,20]
[404311096,1770054639399,-548.31061575,0.00045,30]
[404311098,1770054639408,-363.46028989,0.00045,120]
[404311100,1770054639418,-306.00467922,0.00045,120]
[404311102,1770054639429,-4092.71057854,0.00045,60]
[404311104,1770054639439,-400.54,0.00045205,30]
[404311106,1770054639447,-722.11225755,0.00045272,120]
[404311108,1770054639457,-593.78161668,0.000454,120]
[404311110,1770054639467,-2662.66,0.000455,14]
[404311112,1770054639476,-587.07,0.00045779,120]
[404311114,1770054639488,-459.49975485,0.00046,30]
[404311117,1770054639504,-200.0,0.00046,120]
[404311119,1770054639520,-17510.99006191,0.00046,120]
[404311122,1770054639533,-182499.13576725,0.00046239,30]
[404311124,1770054639547,-587.07,0.00046577,120]
[404311127,1770054639562,-260.32637391,0.00047,120]
[404311129,1770054639577,-215.89,0.00047,30]
[404311132,1770054639590,-755.61231074,0.00047272,120]
[404311134,1770054639605,-587.07,0.00047375,120]
[404311137,1770054639619,-305.857599,0.00047869,30]
[404311139,1770054639633,-524.1181903,0.00048,120]
[404311141,1770054639646,-197.2013981,0.00048,120]
[404311144,1770054639662,-200.0,0.00048,120]
[404311146,1770054639676,-6100.968509,0.00048,120]
[404311149,1770054639689,-587.07,0.00048172,120]
[404311151,1770054639700,-305.857599,0.00048549,30]
[404311153,1770054639712,-587.07,0.0004897,120]
[404311155,1770054639726,-316.91628312,0.00049,15]
[404311158,1770054639742,-789.11236392,0.00049272,120]
[404311160,1770054639755,-150.999999,0.00049306,2]
[404311163,1770054639769,-154.04,0.00049315,120]
[404311165,1770054639784,-256.61684424,0.00049315,120]
[404311168,1770054639796,-175.0,0.00049589,120]
[404311170,1770054639807,-587.07,0.00049768,120]
[404311172,1770054639820,-457.1622749,0.0004987,120]
[404311175,1770054639835,-322012.95909715,0.0005,14]
[404311178,1770054639851,-1234.76169463,0.0005,14]
[404311199,1770054640048,-1903.15,0.00032877,10]
[404311201,1770054640058,-204.78,0.0004,30]
[404311203,1770054640067,-204.78,0.00042,30]
[404311205,1770054640076,-76607.29,0.0005,14]
[404311212,1770054640138,-382.91,0.0005,14]
[404311214,1770054640150,-334.3159,0.0005,14]
[404311786,1770054645686,-1585.95,0.0004999,10]
[404311788,1770054645696,-783.07555936,0.0005,14]
[404311799,1770054645792,-10989.23615108,0.0005,14]
[404312796,1770054961417,-499.99999999,0.00013695,2]
[404312797,1770054961448,-500.0,0.00013695,2]
[404312798,1770054961475,-225.71381997,0.00013695,2]
[404312799,1770054961501,-300.0,0.00013695,2]
[404312800,1770054961526,-300.0,0.00013695,2]
[404312801,1770054961552,-1200.0,0.00013695,2]
[404312802,1770054961593,-500.0,0.00013696,2]
[404312803,1770054961620,-500.0,0.00013696,2]
[404312804,1770054961645,-411.03140071,0.00013696,2]
[404312805,1770054961670,-500.0,0.00013698,2]
[404312806,1770054961695,-500.0,0.0001382,2]
[404312807,1770054969325,-1680.0,0.00015064,2]
[404312808,1770054972718,-269.0,0.00016571,2]
[404312809,1770054975690,638.65802415,0.00016471,2]
[404312810,1770054981274,-493.41523936,0.00018952,2]
[404312812,1770054985193,-25000.0,0.00019089,2]
[404312814,1770055006687,-21605.28752224,0.00019089,2]
[404312910,1770055051817,303.10001603,0.000189,2]
[404312928,1770055054633,303.10001603,0.00019089,2]
[404312958,1770055083994,500.0,0.00019088,2]
[404312959,1770055084416,150.0,0.00017808,2]
[404312960,1770055084453,302.15272124,0.00018356,2]
[404313188,1770055100744,156.61634992,0.00019088,2]
[404313653,1770055118918,156.78126675,0.00019088,2]
[404314160,1770055175295,740.75809701,0.0003,2]
[404314236,1770055178609,1041.66666667,0.0003,2]
[404314616,1770055194748,740.75809701,0.00028,7]
[404314623,1770055195172,740.75809701,0.00028,3]
[404314633,1770055195583,740.75809701,0.00028,7]
[404314643,1770055195989,740.75809701,0.00028,3]
[404314653,1770055196396,740.75809701,0.00028,7]
[404314663,1770055196803,740.75809701,0.00028,3]
[404314747,1770055200208,16901.27628429,0.0003,2]
[404314779,1770055201658,10000.0,0.00015342,2]
[404314782,1770055201754,6406.87,0.00015442,2]
[404316781,1770055500772,-496.36917147,0.000297,2]
[404316782,1770055500799,-166.66666668,0.000299,2]
[404316783,1770055500824,-6226.97334574,0.0003,2]
[404316784,1770055500847,-929.0,0.0003,2]
[404316785,1770055500874,-263.13059424,0.00031106,2]
[404316786,1770055500899,-717.0,0.00031322,2]
[404316787,1770055500923,-180.077,0.00031322,2]
[404316788,1770055500947,-14207.240606,0.00031521,2]
[404316789,1770055500973,-1000.0,0.00031929,30]
[404316792,1770055503754,500.0,0.00013699,2]
[404316793,1770055503782,313.54261587,0.00014247,2]
[404316794,1770055503806,33.61324163,0.00014247,2]
[404316803,1770055678538,8559.51675837,0.0001,2]
[404316804,1770055678565,3394.71247776,0.0001,2]
[404316805,1770055678590,25000.0,0.0001,2]
[404316806,1770055678614,7344.83076387,0.0001,2]
[404316849,1770055831660,-381.876,0.00031474,2]
[404316850,1770055831684,-180.077,0.00031474,2]
[404316851,1770055831698,-216.16663276,0.00031482,2]
[404316852,1770055831710,-223.174,0.00032233,2]
[404316853,1770055831724,-201.489,0.00032233,2]
[404316854,1770055831739,-150.331,0.00032233,2]
[404316855,1770055831752,-250.0,0.00032233,2]
[404316856,1770055831766,-781.79755036,0.00032753,2]
[404316857,1770055831777,-153.81851178,0.000332,117]
[404316858,1770055831788,-179.0,0.00034474,2]
[404316859,1770055831801,-150.0,0.00035233,2]
[404316861,1770055831813,-172.604,0.0003526,41]
[404316864,1770055831824,-500.0,0.00035692,120]
[404316866,1770055831836,-2954.094146,0.00035693,2]
[404316868,1770055831847,-500.0,0.000368,30]
[404316870,1770055831858,-179.0,0.00037474,2]
[404316872,1770055831869,-501.21293941,0.00039207,14]
[404316875,1770055831880,-500.0,0.00039651,120]
[404316877,1770055831891,-179.0,0.00040474,2]
[404316879,1770055831901,-975.0,0.000421,30]
[404316880,1770055831912,-179.0,0.00043474,2]
[404316881,1770055831923,-179.0,0.00046474,2]
[404316882,1770055831933,-275.59930412,0.00047827,7]
[404316883,1770055831946,-7603.28734553,0.00048306,2]
[404316884,1770055831960,-524.68866711,0.00048306,2]
[404316885,1770055832101,-1872.02398736,0.00048306,2]
[404316886,1770055832111,-5000.0,0.000485,120]
[404316887,1770055832121,-500.0,0.00048612,120]
[404316888,1770055832131,-361.08300594,0.00048612,120]
[404316889,1770055832140,-22046.1754578,0.00048613,2]
[404316890,1770055832149,-347.0,0.00049067,2]
[404316891,1770055832159,-179.0,0.00049474,2]
[404316892,1770055832168,-385.0,0.00049522,2]
[404316893,1770055832177,-284.80335305,0.000499,2]
[404316894,1770055832188,-1542.38,0.0004999,10]
[404316895,1770055832197,-1285.32,0.0004999,10]
[404316896,1770055832206,-1071.1,0.0004999,10]
[404316897,1770055832216,-500.0,0.00049998,120]
[404316898,1770055832225,-500.0,0.00049999,120]
[404316899,1770055832235,-518.94139039,0.00049999,120]
[404316900,1770055832244,-990.0,0.00049999,120]
[404316901,1770055832254,-250.0,0.00049999,14]
[404316902,1770055832264,-250.0,0.00049999,14]
[404316903,1770055832273,-250.0,0.00049999,14]
[404316904,1770055832283,-250.0,0.00049999,14]
[404316905,1770055832292,-250.0,0.00049999,14]
[404316906,1770055832301,-250.0,0.00049999,14]
[404316907,1770055832311,-250.0,0.00049999,14]
[404316908,1770055832321,-250.0,0.00049999,14]
[404316909,1770055832330,-250.0,0.00049999,14]
[404316910,1770055832339,-250.0,0.00049999,14]
[404316911,1770055832348,-250.0,0.00049999,14]
[404316912,1770055832357,-1157896.27584141,0.0005,14]
[404316913,1770055832369,-1746.23643252,0.0005,14]
[404316914,1770055832380,-678.08346952,0.0005,14]
[404316915,1770055832390,-36662.35549202,0.0005,14]
[404316916,1770055832407,-15553.18392783,0.0005,14]
[404316945,1770055837820,-892.58,0.0004999,10]
[404316947,1770055837829,-78156.69480604,0.0005,14]
[404317659,1770055844724,-4283.92810629,0.0005,14]
[404317661,1770055844738,-5776.54972411,0.0005,14]
[404317790,1770055846039,-496.36917147,0.0004999,10]
[404317792,1770055846050,-247.45082853,0.0004999,10]
[404317794,1770055846060,-3474.51177032,0.0005,14]
[404318158,1770055912195,303.10001603,0.000189,2]
[404319006,1770056163169,-1000.0,0.00029176,2]
[404319022,1770056203591,303.10001603,0.000189,2]
[404319147,1770056492179,303.10001603,0.000189,2]
[404319355,1770056782106,303.10001603,0.000189,2]
[404319382,1770056887101,500.0,0.00013273,2]
[404319387,1770056912274,1670.47260669,0.0003,120]
[404319393,1770056920138,414.30874651,0.000135,2]
[404319394,1770056922454,690.80750882,0.0001747,2]
[404319402,1770056944181,500.0,0.00013273,2]
[404319403,1770056944252,403.59077284,0.00013273,2]
[404319416,1770057007520,441.73263969,0.00013273,2]
[404319460,1770057031972,-150.49482106,0.00021918,2]
[404319461,1770057031981,-150.0,0.0002274,2]
[404319463,1770057031991,-177.0,0.0002474,2]
[404319464,1770057032001,-300.0,0.00024773,2]
[404319465,1770057032011,-1200.0,0.00024773,2]
[404319466,1770057032020,-12757.07218804,0.00024774,2]
[404319467,1770057032032,-1793.97732984,0.00024774,2]
[404319468,1770057032042,-376.33692443,0.00025,2]
[404319469,1770057032052,-500.0,0.00026099,2]
[404319470,1770057032065,-500.0,0.00026099,2]
[404319471,1770057032076,-500.0,0.00026099,2]
[404319472,1770057032086,-500.0,0.00026099,2]
[404319473,1770057032095,-500.0,0.00026099,2]
[404319474,1770057032105,-500.0,0.00026099,2]
[404319475,1770057032114,-500.0,0.00026099,2]
[404319476,1770057032123,-500.0,0.00026099,2]
[404319477,1770057032132,-500.0,0.00026099,2]
[404319478,1770057032141,-500.0,0.00026099,2]
[404319479,1770057032150,-325.01566191,0.00026099,2]
[404319480,1770057032159,-500.0,0.00026099,2]
[404319481,1770057032170,-500.0,0.00026099,2]
[404319482,1770057032180,-500.0,0.00026099,2]
[404319483,1770057032190,-500.0,0.00026099,2]
[404319484,1770057032199,-500.0,0.00026099,2]
[404319485,1770057032210,-500.0,0.00026099,2]
[404319486,1770057032220,-500.0,0.00026099,2]
[404319487,1770057032230,-500.0,0.00026099,2]
[404319488,1770057032239,-500.0,0.00026099,2]
[404319489,1770057032248,-186.01073249,0.00026099,2]
[404319490,1770057032257,-500.0,0.00026099,2]
[404319491,1770057032267,-500.0,0.00026099,2]
[404319492,1770057032276,-1000.0,0.000261,2]
[404319493,1770057032285,-1000.0,0.000261,2]
[404319494,1770057032294,-1000.0,0.000261,2]
[404319495,1770057032302,-1000.0,0.000261,2]
[404319496,1770057032312,-1000.0,0.000261,2]
[404319497,1770057032320,-1000.0,0.000261,2]
[404319498,1770057032330,-1000.0,0.000261,2]
[404319499,1770057032339,-1000.0,0.000261,2]
[404319500,1770057032348,-1000.0,0.000261,2]
[404319501,1770057032357,-1000.0,0.000261,2]
[404319502,1770057032366,-566.367876,0.000261,2]
[404319503,1770057032375,-204.0,0.0002674,2]
[404319504,1770057032384,-420.0,0.00026844,2]
[404319505,1770057032393,-923.36253682,0.00026965,2]
[404319532,1770057038020,-756.63746318,0.00026965,2]
[404319534,1770057038030,-587.0,0.00029087,2]
[404319536,1770057038040,-7041.59100732,0.00029177,2]
[404319538,1770057038050,-2351.0,0.00029352,2]
[404319539,1770057038062,-24718.37561203,0.00031113,2]
[404319542,1770057038074,-2757.22154432,0.00031113,2]
[404319544,1770057038085,-2449.64641403,0.00031113,2]
[404319751,1770057040385,-619.85,0.00031103,10]
[404319753,1770057040395,-31.12036733,0.00031113,2]
[404320224,1770057045209,-10016.71109997,0.00031113,2]
[404320718,1770057063355,503.60793428,0.00013273,2]
[404320741,1770057094426,500.0,0.00013273,2]
[404320742,1770057095544,500.0,0.00013273,2]
[404320749,1770057167030,303.10001603,0.000189,2]
[404320753,1770057183909,500.0,0.00013273,2]
[404320754,1770057183939,500.0,0.00013273,2]
[404320756,1770057238386,3468.40136073,0.00019,2]
[404320762,1770057303465,542.38887333,0.00013273,2]
[404320764,1770057364322,500.0,0.00013273,2]
[404320765,1770057367607,180.08535491,0.00013273,2]
[404320771,1770057424026,501.18048027,0.00013273,2]
[404320772,1770057424060,318.03730261,0.00013273,2]
[404320773,1770057424087,500.0,0.00013273,2]
[404320774,1770057424137,593.69315787,0.00013273,2]
[404320775,1770057424225,500.0,0.00013273,2]
[404320777,1770057426985,500.0,0.00013273,2]
[404320778,1770057427014,500.0,0.00013273,2]
[404320836,1770057456005,303.10001603,0.000189,2]
[404320845,1770057480214,339.3,9.99e-05,7]
[404320846,1770057480451,339.3,9.99e-05,7]
[404320851,1770057485291,500.0,0.00013273,2]
[404321025,1770057745774,303.10001603,0.000189,2]
[404321264,1770057964130,14068.00968748,0.000392,30]
[404321282,1770058033571,303.10001603,0.000189,2]
[404321306,1770058045658,500.0,0.00027968,120]
[404321522,1770058232112,-250.0,0.00023806,2]
[404321524,1770058232122,-2093.01497155,0.00025,2]
[404321526,1770058232133,-504.07830695,0.00025,2]
[404321528,1770058232143,-1129.9067215,0.00025,2]
[404321530,1770058232153,-534.04120655,0.00026848,2]
[404321532,1770058232164,-557.95879345,0.00026848,2]
[404321535,1770058232173,-300.0,0.00027966,2]
[404321538,1770058232183,-500.0,0.00027967,2]
[404321541,1770058232192,-405.19448245,0.00027967,2]
[404321544,1770058232201,-500.0,0.00027967,2]
[404321547,1770058232210,-500.0,0.00027967,2]
[404321549,1770058232219,-96.61029158,0.00027967,2]
[404321583,1770058238229,-403.38970842,0.00027967,2]
[404321584,1770058238239,-187.33452583,0.00027967,2]
[404321587,1770058238249,-894.95308216,0.00027968,2]
[404321589,1770058238260,-1982.72404432,0.00027968,2]
[404322414,1770058246495,-889.14991763,0.00024953,2]
[404322416,1770058246505,-2832.86747747,0.00027968,2]
[404323012,1770058295488,500.0,0.00027968,120]
[404323013,1770058324447,0.51973667,0.000189,2]
[404323019,1770058379951,-302.58027936,0.000189,2]
[404323020,1770058379974,-697.41972064,0.00018989,2]
[404323021,1770058383653,181.96269739,0.00013273,2]
[404323023,1770058545555,500.0,0.00027968,120]
[404323024,1770058698729,150.0,0.00030137,120]
[404323025,1770058773190,500.0,0.00027968,120]
[404323026,1770058773434,500.0,0.0002913,120]
[404323030,1770058891171,-782.16,0.00018611,2]
[404323032,1770059003081,500.0,0.00026691,120]
[404323033,1770059003301,500.0,0.00026692,120]
[404323034,1770059003570,500.0,0.00026692,120]
[404323035,1770059003831,500.0,0.00026692,120]
[404323036,1770059004088,500.0,0.00027688,120]
[404323037,1770059006051,501.55764445,0.00013699,2]
[404323038,1770059007141,204.69093765,0.00013273,2]
[404323045,1770059283584,778.68,0.00018,2]
[404323046,1770059285724,158.34,9.99e-05,2]
[404323047,1770059286003,158.34,9.99e-05,2]
[404323048,1770059286304,158.34,9.99e-05,2]
[404323078,1770059432252,-164.65138025,0.00018711,2]
[404323080,1770059432262,-611.5249467,0.00026592,2]
[404323082,1770059432271,-1200.0,0.0002668,2]
[404323084,1770059432280,-394.15527737,0.00026681,2]
[404323086,1770059432290,-500.0,0.00026681,2]
[404323088,1770059432300,-500.0,0.00026681,2]
[404323091,1770059432314,-500.0,0.00026681,2]
[404323093,1770059432327,-500.0,0.00026681,2]
[404323095,1770059432340,-500.0,0.00026681,2]
[404323098,1770059432353,-500.0,0.00026681,2]
[404323100,1770059432364,-500.0,0.00026681,2]
[404323102,1770059432374,-500.0,0.00026681,2]
[404323104,1770059432386,-300.85152517,0.00026681,2]
[404323107,1770059432398,-500.0,0.00026681,2]
[404323109,1770059432409,-500.0,0.00026681,2]
[404323111,1770059432421,-75.63734555,0.00026681,2]
[404323116,1770059432452,-424.36265445,0.00026681,2]
[404323118,1770059432464,-41.23999906,0.00026681,2]
[404323121,1770059432479,-458.76000094,0.00026681,2]
[404323123,1770059432493,-500.0,0.00026681,2]
[404323125,1770059432504,-500.0,0.00026681,2]
[404323128,1770059432516,-500.0,0.00026681,2]
[404323130,1770059432529,-149.15644741,0.00026681,2]
[404323132,1770059432543,-350.84355259,0.00026681,2]
[404323135,1770059432555,-500.0,0.00026681,2]
[404323137,1770059432568,-500.0,0.00026681,2]
[404323139,1770059432580,-49.58560123,0.00026681,2]
[404323142,1770059432596,-450.41439877,0.00026681,2]
[404323144,1770059432607,-500.0,0.00026681,2]
[404323146,1770059432619,-500.0,0.00026681,2]
[404323148,1770059432630,-500.0,0.00026681,2]
[404323150,1770059432640,-359.92070395,0.00026681,2]
[404323153,1770059432651,-500.0,0.00026681,2]
[404323155,1770059432663,-500.0,0.00026681,2]
[404323157,1770059432675,-500.0,0.00026681,2]
[404323159,1770059432686,-500.0,0.00026681,2]
[404323162,1770059432699,-500.0,0.00026681,2]
[404323164,1770059432711,-500.0,0.00026681,2]
[404323167,1770059432723,-500.0,0.00026681,2]
[404323169,1770059432735,-500.0,0.00026681,2]
[404323171,1770059432747,-500.0,0.00026681,2]
[404323172,1770059432759,-500.0,0.00026681,2]
[404323173,1770059432771,-190.74691388,0.00026681,2]
[404323174,1770059432786,-109.25308612,0.00026681,2]
[404323175,1770059432801,-300.0,0.00026681,2]
[404323176,1770059432811,-300.0,0.00026681,2]
[404323177,1770059432822,-10.74691388,0.00026681,2]
[404323305,1770059438442,-500.0,0.00026681,2]
[404323306,1770059438454,-459.26635639,0.00026681,2]
[404323308,1770059438465,-328.12347192,0.00026681,2]
[404323310,1770059438476,-500.0,0.00026681,2]
[404323312,1770059438487,-604.99496134,0.00026681,2]
[404323315,1770059438498,-500.0,0.00026681,2]
[404323318,1770059438509,-346.35960734,0.00026681,2]
[404323320,1770059438522,-153.64039266,0.00026681,2]
[404323322,1770059438531,-500.0,0.00026681,2]
[404323333,1770059438654,-500.0,0.00026681,2]
[404323335,1770059438665,-500.0,0.00026681,2]
[404323337,1770059438675,-500.0,0.00026681,2]
[404323339,1770059438685,-500.0,0.00026681,2]
[404323340,1770059438694,-500.0,0.00026681,2]
[404323342,1770059438703,-500.0,0.00026681,2]
[404323344,1770059438713,-500.0,0.00026681,2]
[404323346,1770059438723,-500.0,0.00026681,2]
[404323348,1770059438732,-500.0,0.00026681,2]
[404323350,1770059438741,-500.0,0.00026681,2]
[404323351,1770059438750,-500.0,0.00026681,2]
[404323353,1770059438760,-500.0,0.00026681,2]
[404323355,1770059438769,-500.0,0.00026681,2]
[404323356,1770059438778,-500.0,0.00026681,2]
[404323358,1770059438788,-500.0,0.00026681,2]
[404323360,1770059438800,-500.0,0.00026681,2]
[404323362,1770059438810,-500.0,0.00026681,2]
[404323364,1770059438818,-500.0,0.00026681,2]
[404323365,1770059438827,-289.25308612,0.00026681,2]
[404323367,1770059438837,-45324.17703667,0.00026682,2]
[404323369,1770059438848,-4675.82296333,0.00026682,2]
[404323371,1770059438857,-1001.0736353,0.0002669,2]
[404323372,1770059438869,-500.0,0.00026692,2]
[404323374,1770059438878,-61408.8072041,0.00026693,2]
[404323376,1770059438888,-150.0,0.00027692,2]
[404323378,1770059438897,-150.0,0.00027692,2]
[404323379,1770059438906,-150.0,0.00027692,2]
[404323381,1770059438915,-150.0,0.00027692,2]
[404323383,1770059438925,-1261.39,0.000278,2]
[404323385,1770059438935,-150.0,0.00027829,2]
[404323386,1770059438944,-150.0,0.00027829,2]
[404323388,1770059438953,-203.65413919,0.00027966,2]
[404323390,1770059438963,-24638.05299825,0.00027968,2]
[404323392,1770059438973,-635.44,0.000283,2]
[404323394,1770059438983,-410.77084576,0.00028407,2]
[404323396,1770059438992,-420.0,0.00028642,2]
[404323397,1770059439001,-172.1,0.00028642,2]
[404323399,1770059439011,-172.1,0.00028642,2]
[404323401,1770059439021,-172.1,0.00028642,2]
[404323403,1770059439030,-172.1,0.00028642,2]
[404323405,1770059439039,-1000.0,0.0002882,30]
[404323406,1770059439049,-420.0,0.00028855,2]
[404323408,1770059439058,-367.0,0.00028855,2]
[404323410,1770059439067,-611.52494668,0.00028919,2]
[404323412,1770059439077,-1000.0,0.00028981,2]
[404323414,1770059439087,-4726.7653941,0.00029131,2]
[404323416,1770059439096,-611.52494668,0.00031246,2]
[404323417,1770059439105,-329.03794061,0.00031478,2]
[404323419,1770059439115,-592.26829309,0.00031478,2]
[404323421,1770059439124,-311.50210071,0.0003148,2]
[404323423,1770059439133,-356.00240081,0.0003148,2]
[404323425,1770059439142,-172.604,0.00032144,31]
[404323426,1770059439151,-620.39,0.00032926,3]
[404323428,1770059439162,-2000.0,0.00032935,2]
[404323430,1770059439172,-17424.0381493,0.00032936,2]
[404323432,1770059439181,-1052.92140994,0.00033261,2]
[404323434,1770059439190,-611.52494668,0.00033573,2]
[404323436,1770059439200,-1054.6839193,0.00034459,2]
[404323438,1770059439209,-990.0,0.00035616,120]
[404323440,1770059439218,-235.3317918,0.00035648,2]
[404323441,1770059439227,-814.37239985,0.00035675,120]
[404323443,1770059439237,-611.52494668,0.000359,2]
[404323445,1770059439246,-24530.36437378,0.00035988,2]
[404323447,1770059439257,-156950.0,0.00035988,2]
[404323449,1770059439268,-6352.11166021,0.00035988,2]
[404323565,1770059440500,-382.91,0.00026683,10]
[404323567,1770059440511,-334.3159,0.00026683,10]
[404323569,1770059440522,-306.5041,0.00026683,10]
[404323571,1770059440531,-38323.95155203,0.00035988,2]
[404323906,1770059445236,-9137.15182948,0.00035988,2]
[404323928,1770059446520,-5676.60879565,0.00035988,2]
[404323930,1770059494643,1615.05,0.00030137,120]
[404323931,1770059522353,1615.0,0.00030137,120]
[404323947,1770059789846,-303.10001603,0.000189,2]
[404323987,1770060260373,-2238.05,0.00020117,2]
[404324014,1770060506178,2916.1115346,0.00015,2]
[404324015,1770060506563,4031.11850738,0.00015,2]
[404324931,1770060645827,-388.63444913,0.0002976,2]
[404324933,1770060645836,-155.72814407,0.00032877,10]
[404324939,1770060645880,-344.27185593,0.00032877,10]
[404324941,1770060645890,-1414.177919,0.00033214,2]
[404324943,1770060645899,-479.60022507,0.00035285,2]
[404325039,1770060646804,-6306.49891167,0.00035285,2]
[404325041,1770060646814,-550.14394669,0.00035887,120]
[404325043,1770060646823,-36073.68813047,0.00035896,2]
[404325045,1770060646834,-6159.12490764,0.00035896,2]
[404325047,1770060646844,-77.99008078,0.00035896,15]
[404325050,1770060646855,-360.76190119,0.00035896,15]
[404325052,1770060646864,-500.0,0.00035896,7]
[404325054,1770060646873,-500.0,0.00035896,15]
[404325056,1770060646882,-536.45816355,0.00035896,15]
[404325058,1770060646891,-500.0,0.00035896,7]
[404325060,1770060646900,-384.36292849,0.00035896,15]
[404325062,1770060646909,-206.65785599,0.00035896,15]
[404325064,1770060646918,-410.49949613,0.00035896,7]
[404325066,1770060646927,-172.60430784,0.00035898,43]
[404325068,1770060646935,-411.42,0.00035978,10]
[404325070,1770060646945,-784.54,0.00035978,10]
[404325072,1770060646954,-290.19331698,0.00035987,120]
[404325074,1770060646963,-18485.0020302,0.00035988,2]
[404325076,1770060646974,-4044.40435005,0.00035988,2]
[404325078,1770060646984,-453.0,0.00035988,2]
[404325080,1770060646997,-3112.0,0.00035988,2]
[404325083,1770060647009,-59302.12373551,0.00035988,2]
[404325558,1770060778624,-1241.76,0.00035888,2]
[404327389,1770061923361,500.0,0.00013273,2]
[404327390,1770061923412,1000.0,0.00013821,2]
[404327391,1770061923472,858.94419256,0.00014368,2]
[404327392,1770061925701,500.0,0.00013699,2]
[404327393,1770061927312,500.0,0.00013273,2]
[404327394,1770061927368,500.0,0.00013821,2]
[404327395,1770061927393,500.0,0.00013273,2]
[404327396,1770061929613,300.0,0.00013673,2]
[404327397,1770061929667,300.0,0.00014221,2]
[404327398,1770061940324,678.77,0.00015342,2]
[404327400,1770061983150,160.3759056,0.00013699,2]
[404327401,1770061983175,500.0,0.00013273,2]
[404327402,1770061983200,500.0,0.00013699,2]
[404327403,1770061983225,500.0,0.00013699,2]
[404327404,1770061983250,500.0,0.00013273,2]
[404327405,1770061983276,1000.0,0.00013821,2]
[404327406,1770061983302,500.0,0.00014795,2]
[404327407,1770061983331,500.84679195,0.00014247,2]
[404327408,1770061983357,201.07310989,0.00013821,2]
[404327409,1770061983381,798.92689011,0.00013821,2]
[404327410,1770061983410,500.0,0.00013273,2]
[404327411,1770061983440,235.9475744,0.00014368,2]
[404327412,1770061983468,1241.4327344,0.00014368,2]
[404327413,1770061983492,1000.0,0.00014247,2]
[404327414,1770061983950,500.0,0.00013699,2]
[404327415,1770061984003,820.12567473,0.00014247,2]
[404327416,1770061987232,500.0,0.00013273,2]